Workbook

Sheet READ ME
D11: Read Me Sheet
D16: INVEST – Farm Analysis Tool
D18: Introduction
D19: This tool allows for assessment on farm productivity and profitability through its average annual agricultural production. The tool is useful for establishing a baseline or to assess the impact of planned investments. This tool allows a SPIS advisor (supplier, development practitioner, extension officer) to support a farm enterprise towards identify unnecessary costs, determine best value agricultural activities and correctly monetize different farm inputs.
D26: Tips & Tricks
D36: Overview
D37: This tool comprises the following sheets:
D38: 1. General Information | G38: on the farm identity, location and area
D40: 2. Equipment & Assets | G40: currently available on the farm or considered for future purchase
D42: 3. Income Crops & Livestock | G42: to add current or projected sales of seasonal crops (e.g. rice, maize), perennial crops (e.g. fruits) and livestock and respective by-products
D45: 4. Other Income | G45: additional income not directly related to crop or livestock production such as sale of water or rental out of equipment
D48: 5. Financing | G48: calculates annual loan repayment based on credit information
D50: 6. Fixed and Variable Costs | G50: to add all fixed and variable costs/expenditures of the farm enterprise
D52: 9. Farm Income Statement | G52: No Entry! Summary calculation on gross profitability of the farm enterprise
D54: Crop Price Calculation Sheet | G54: side sheet for calculating average annual crop and livestock prices
D56: Quick Check | G56: side sheet for a quick calculation of farm profitability useful before conducting full analysis
D59: About
D60: Published by: | F60: GIZ & FAO
D61: Responsible: | F61: GIZ project Sustainable Energy for Food - Powering Agriculture
D63: Contact: | F63: Powering.Agriculture@giz.de
D64: Download link: | F64: https://energypedia.info/wiki/Toolbox_on_SPIS
D65: About: | F65: Powering Agriculture: An Energy Grand Challenge for Development. Available at:
F67: https://poweringag.org
D68: Version: | F68: 2,0 (July 2020)
D70: The Toolbox on Solar Powered Irrigation Systems is made possible through the global initiative Powering Agriculture: An Energy Grand Challenge for Development (PAEGC). In 2012, the United States Agency for International Development (USAID), the Swedish International Development Cooperation Agency (Sida), the German Federal Ministry for Economic Cooperation and Development (BMZ), Duke Energy, and the Overseas Private Investment Cooperation (OPIC) combined resources to create the PAEGC initiative. The objective of PAEGC is to support new and sustainable approaches to accelerate the development and deployment of clean energy solutions for increasing agriculture productivity and/or value for farmers and agribusinesses in developing countries and emerging regions that lack access to reliable, affordable clean energy.
D83: The designations employed and the presentation of material in this information product do not imply the expression of any opinion whatsoever on the part of Deutsche Gesellschaft für Internationale Zusammenarbeit (GIZ) GmbH, Food and Agriculture Organization of the United Nations (FAO) or any of the PAEGC Founding Partners concerning the legal or development status of any country, territory, city or area or of its authorities, or concerning the delimitation of its frontiers or boundaries. The mention of specific companies or products of manufacturers, whether or not these have been patented, does not imply that these have been endorsed or recommended by GIZ, FAO, or any of the PAEGC Founding Partners in preference to others of a similar nature that are not mentioned. The views expressed in this information product are those of the author and do not necessarily reflect the views or policies of GIZ, FAO, or any of the PAEGC Founding Partners.
D98: GIZ, FAO and the PAEGC Founding Partners encourage the use, reproduction and dissemination of material in this information product. Except where otherwise indicated, material may be copied, downloaded and printed for private study, research and teaching purposes, or for use in non-commercial products or services, provided that appropriate acknowledgement of GIZ and FAO as the source and copyright holder is given.
D106: © GIZ and FAO, 2018

Sheet 1 General Information
A1: INVEST – Farm Analysis Tool
B2: 1 GENERAL FARM INFORMATION
B5: Country | G5: Region
B6: Farm code or name | G6: Date
B8: Village
B9: Division
B10: District
B11: Assessor
B12: Agricultural planning period (years) | D12: 2018 | E12: 2019 | F12: (year in four digits each ! )
B13: Currency used for calculation | D13: €
B14: Area measurement unit | D14: Acre
B17: LAND RESOURCES
B19: Property rights | D19: Area
B20: + Land owned | E20: 1 | F20: =+$D$14 -> Acre
B21: + Additional land as part of co-operative land | F21: =+$D$14 -> Acre
B22: + Additional land exploited as sharegrower | F22: Acre
B23: + Additional land leased in | F23: Acre
B24: - Own land leased out | F24: Acre
B25: + Additional land in possession of other sources | F25: Acre
B26: - Own land unused or unusable | F26: Acre
D27: Total | E27: =+SUM(E20:E23)-E24+E25-E26 -> 1 | F27: Acre
B30: Land classification | D30: Area | E30: rainfed | F30: irrigated
B31: Seasonal crop land | F31: 1 | G31: =+$D$14 -> Acre
B32: Perennials (with & without option of intercropping) | G32: Acre
B33: Greenhouses | G33: Acre
B34: Pastures (grazing land) | G34: Acre
B35: Fallow land | G35: Acre | H35: Total area
D36: Total agricultural / horticultural land | E36: =+SUM(E31:E35) -> 0 | F36: =+SUM(F31:F35) -> 1 | G36: Acre | H36: =IF(E36+F36=E27,E36+F36,"CHECK Property rights") -> 1 | I36: Acre

Sheet 2 Equipment & Assets
A1: INVEST – Farm Analysis Tool
B2: 2 EQUIPMENT & ASSETS
E4: Farm code | F4: ='1 General Information'!C6 -> 0
B6: Type | C6: Cost of existing equipment (when originally purchased) | D6: Salvage value (when selling existing equipment) | E6: Age | F6: Normal life span | G6: Annual depreciation for replacement
C10: ='1 General Information'!D13 -> € | D10: ='1 General Information'!D13 -> € | E10: years | F10: years | G10: ='1 General Information'!D13 -> €
B11: Livestock shed | C11: 60000 | D11: 10000 | E11: 2 | F11: 20 | G11: =IFERROR(SLN(C11,D11,(F11-E11)),"") -> 2777.777778 | H11: Indicative normal life span: | I11: Please select
B12: Please select | G12: =IFERROR(SLN(C12,D12,(F12-E12)),"") ->  | H12: (highly quality dependent!)
B13: Please select | H13: Livestock shed - 20 years | I13: Livestock shed
B14: Please select | H14: Garage / workshop - 20 year | I14: Garage / workshop
B15: Please select | H15: Storage / warehouse - 20 years | I15: Storage / warehouse
B16: Please select | H16: Greenhouse - 10 years | I16: Greenhouse
B17: Please select | G17: =IFERROR(SLN(C17,D17,(F17-E17)),"") ->  | H17: Other building - 20 years | I17: Other building
B18: Please select | H18: Ox cart - 7 years | I18: Ox cart
B19: Please select | H19: Truck / car - 10 years | I19: Truck / car
B20: Please select | H20: Tractor - 10 years | I20: Tractor
B21: Please select | H21: Plough - 7 years | I21: Plough
B22: Please select | H22: Cultivator / tiller - 7 years | I22: Cultivator / tiller
B23: Please select | H23: Sowing machine - 7 years | I23: Sowing machine
B24: Please select | H24: Fertilizer distributor - 7 years | I24: Fertilizer distributor
B25: Please select | H25: Sprayer - 7 years | I25: Sprayer
B26: Please select | H26: Grass cutter - 7 years | I26: Grass cutter
B27: Please select | H27: Baler - 7 years | I27: Baler
B28: Please select | H28: Cereal harvester - 10 years | I28: Cereal harvester
H29: Irrigation material - 5 years | I29: Irrigation material
H30: Water pump - 7 years | I30: Water pump
H31: PV modules - 20 years | I31: PV generator
I32: Well / borehole
C38: Total Annual Depreciation | F38: ='1 General Information'!D13 -> € | G38: =+SUM(G11:G36) -> 2777.777778

Sheet 3 Income Crops & Livestock
A1: INVEST – Farm Analysis Tool
B2: INCOME: SEASONAL CROP
F4: Farm code | G4: ='1 General Information'!C6 -> 0
C5: Season 1 | D5: Season 2
B6: Agricultural land used: | C6: ='List of dropdown'!E24 -> 1 | D6: ='List of dropdown'!E25 -> 1 | E6: ='1 General Information'!D14 -> Acre
E7: Unit | F7: ="Yield per "& '1 General Information'!D14 &" or Quantity" -> Yield per Acre or Quantity | G7: Unit Price | H7: Value
B8: Sales
B9: Crop types: | C9: Season: | D9: Area:
B10: Tomato | C10: Season 1 | D10: 0.5 | H10: =+G10*F10*D10 -> 0
B11: Maize | C11: Season 1 | D11: 0.5 | H11: =+G11*F11*D11 -> 0
B12: Tomato | C12: Season 2 | D12: 0.5 | H12: 0
B13: Beans | C13: Season 2 | D13: 0.5 | H13: 0
H14: 0
H15: =+G15*F15*D15 -> 0
B16: By-products:
H17: =+G17*F17 -> 0
H18: 0
H19: 0
B20: GROSS INCOME | H20: =SUM(H10:H19) -> 0
B21: INCOME: PERENNIAL CROP
B23: Agricultural land used: | D23: =SUM(D27:D31) -> 0 | E23: ='1 General Information'!D14 -> Acre
E24: Unit | F24: ="Yield per "& '1 General Information'!D14 &" or Quantity" -> Yield per Acre or Quantity | G24: Unit Price | H24: Value
B25: Sales
B26: Crop types: | D26: Area:
H27: =+G27*F27*D27 -> 0
H28: =+G28*F28*D28 -> 0
H29: 0
H30: 0
H31: 0
B32: By-products:
H33: =+G33*F33 -> 0
H34: =+G34*F34 -> 0
H35: 0
B36: GROSS INCOME | H36: =SUM(H27:H35) -> 0
B37: INCOME: LIVESTOCK
B40: Livestock for production: | D40: =SUM(D44:D57) -> 3 | E40: Livestock sold: | G40: =SUM(F44:F57) -> 2 | H40: head
E41: Unit | F41: Quantity | G41: Unit Price | H41: Value
B42: For Production | E42: For Sale
B43: Livestock type | D43: Quantity
B44: Dairy cows | D44: 3 | E44: head | H44: =+G44*F44 -> 0
B45: Heifers | E45: head | H45: =+G45*F45 -> 0
B46: Adult steers | E46: head | H46: 0
B47: Juvenile steers | E47: head | F47: 2 | H47: 0
B48: Calfs | E48: head | H48: 0
B49: Sheep does | E49: head | H49: 0
B50: Sheep bucks | E50: head | H50: 0
B51: Sheep kids | E51: head | H51: 0
B52: Goat does | E52: head | H52: 0
B53: Goat bucks | E53: head | H53: 0
B54: Goat kids | E54: head | H54: 0
B55: Chickens | E55: head | H55: 0
H56: 0 | L56: By-product calculator for | O56: Eggs | P56: Select
H57: 0
B58: By-products: | L58: =IF($O$56="Milk","Daily milk yield:","") ->  | O58: 10 | P58: =IF($O$56="Milk","litres/day","") -> 
B59: Milk | E59: litres | F59: 15000 | G59: 4 | H59: =+G59*F59 -> 60000 | L59: =IF($O$56="Milk","Number of dairy livestock:","Number of chickens:") -> Number of chickens: | O59: 2 | P59: head
B60: Eggs | E60: piece | H60: =+G60*F60 -> 0 | L60: =IF($O$56="Milk","Days of milking per year:","Days of egg laying per year") -> Days of egg laying per year | O60: 300 | P60: days/year
B61: Skins | H61: =+G61*F61 -> 0 | L61: =IF($O$56="Milk","Note: milking (lactation) periods typically range between 209 and 305 days per year for dairy livestock","") -> 
B62: Manure | H62: =+G62*F62 -> 0
H63: 0 | L63: Total | O63: =IF($O$56="Milk",$O$58*$O$59*$O$60,$O$59*$O$60) -> 600 | P63: =IF($O$56="Milk","litres/year","eggs/year") -> eggs/year
B64: GROSS INCOME | H64: =SUM(H44:H63) -> 60000

Sheet 4 Other Income
A1: INVEST – Farm Analysis Tool
B2: 4 OTHER INCOME
L4: Farm code | N4: ='1 General Information'!C6 -> 0
B6: Month | C6: Monthly/Yearly Costs | D6: January | E6: February | F6: March | G6: April | H6: May | I6: June | J6: July | K6: August | L6: September | M6: October | N6: November | O6: December | P6: Yearly Costs | Q6: Total
B7: Type of OTHER INCOME | D7: 1 | E7: 2 | F7: 3 | G7: 4 | H7: 5 | I7: 6 | J7: 7 | K7: 8 | L7: 9 | M7: 10 | N7: 11 | O7: 12
B8: Sale of water | C8: Monthly | Q8: =IF(C8="Monthly",SUM(D8:O8),IF(C8="Yearly",P8,0)) -> 0
B9: Hire out of equipment | C9: Yearly | Q9: =IF(C9="Monthly",SUM(D9:O9),IF(C9="Yearly",P9,0)) -> 0
B10: Lease out storage space | C10: Monthly | Q10: 0
B11: Lease out land | C11: Yearly | Q11: 0
B12: Lease out labour | C12: Monthly | Q12: 0
Q13: 0
Q14: 0
B15: TOTAL OTHER INCOME per month/year | D15: =SUMIF($C$8:$C$14,"Monthly",D8:D14) -> 0 | E15: =SUMIF($C$8:$C$14,"Monthly",E8:E14) -> 0 | F15: 0 | G15: 0 | H15: 0 | I15: 0 | J15: 0 | K15: 0 | L15: 0 | M15: 0 | N15: 0 | O15: 0 | P15: =SUMIF($C$8:$C$14,"Yearly",P8:P14) -> 0 | Q15: =+SUM(Q8:Q14) -> 0

Sheet 5 Financing
A1: INVEST – Farm Analysis Tool
A2: CREDIT AND FINANCING (simplified calculator, to be confirmed with loan provider)
J4: Farm code | K4: ='1 General Information'!C6 -> 0
A5: Calculator | I5: Enter manually:
A6: Bank name | B6: Loan amount | C6: Credit period (years) | D6: Month of taking credit | E6: Year of taking credit | F6: Annual interest rate | G6: Monthly loan repayment | J6: Note: the Calculator value will take precedence to the manual value. Ensure calculator value is 0 in order to use manual value.
H7: OR
B9: 7000 | C9: 3 | D9: 1 | E9: 2018 | F9: 0.08 | G9: =IF(D9,-PMT(F9/12,C9*12,B9),"0") -> 219.3545582
G10: =IF(D10,-PMT(F10/12,C10*12,B10),"0") -> 0
G11: =IF(D11,-PMT(F11/12,C11*12,B11),"0") -> 0
G12: 0
G13: 0
G14: 0
G15: 0
A16: TOTAL CREDIT | B16: =SUM(B9:B15) -> 7000 | G16: =SUM(G9:G15) -> 219.3545582 | I16: =SUM(I9:I14) -> 0
D17: Total Annual Loan Repayments | G17: =G16*12 -> 2632.254699 | I17: =I16*12 -> 0

Sheet 6 Fixed and Variable Costs
A1: INVEST – Farm Analysis Tool
B2: 4 COSTS (FIXED and VARIABLE)
M4: Farm code | N4: ='1 General Information'!C6 -> 0
B6: Month | C6: Monthly/Yearly Costs | D6: January | E6: February | F6: March | G6: April | H6: May | I6: June | J6: July | K6: August | L6: September | M6: October | N6: November | O6: December | P6: Yearly Costs | Q6: Total
D7: 1 | E7: 2 | F7: 3 | G7: 4 | H7: 5 | I7: 6 | J7: 7 | K7: 8 | L7: 9 | M7: 10 | N7: 11 | O7: 12
B8: FIXED COSTS
B9: Financing fees | C9: Monthly | D9: ='5 Financing'!$G$16 -> 219.3545582 | E9: ='5 Financing'!$G$16 -> 219.3545582 | F9: ='5 Financing'!$G$16 -> 219.3545582 | G9: ='5 Financing'!$G$16 -> 219.3545582 | H9: ='5 Financing'!$G$16 -> 219.3545582 | I9: ='5 Financing'!$G$16 -> 219.3545582 | J9: ='5 Financing'!$G$16 -> 219.3545582 | K9: ='5 Financing'!$G$16 -> 219.3545582 | L9: ='5 Financing'!$G$16 -> 219.3545582 | M9: ='5 Financing'!$G$16 -> 219.3545582 | N9: ='5 Financing'!$G$16 -> 219.3545582 | O9: ='5 Financing'!$G$16 -> 219.3545582 | P9: =SUM(D9:O9) -> 2632.254699 | Q9: =IF(C9="Monthly",SUM(D9:O9),IF(C9="Yearly",P9,0)) -> 2632.254699
B10: Depreciation costs | C10: Yearly | P10: ='2 Equipment & Assets'!$G$38 -> 2777.777778 | Q10: 2777.777778
B11: Membership fees | C11: Yearly | Q11: =IF(C11="Monthly",SUM(D11:O11),IF(C11="Yearly",P11,0)) -> 0
B12: Insurance costs | C12: Monthly | Q12: =IF(C12="Monthly",SUM(D12:O12),IF(C12="Yearly",P12,0)) -> 0
B13: Land tax | C13: Yearly | Q13: 0
B14: Social fund contribution | Q14: 0
B15: Leasing fees for equipment | Q15: 0
B16: Rental costs for land | Q16: 0
B17: - | Q17: 0
B18: - | Q18: 0
B19: TOTAL FIXED COSTS per month/year | D19: =SUMIF($C$9:$C$18,"Monthly",D$9:D$18) -> 219.3545582 | E19: =SUMIF($C$9:$C$18,"Monthly",E$9:E$18) -> 219.3545582 | F19: 219.3545582 | G19: 219.3545582 | H19: 219.3545582 | I19: 219.3545582 | J19: 219.3545582 | K19: 219.3545582 | L19: 219.3545582 | M19: 219.3545582 | N19: 219.3545582 | O19: 219.3545582 | P19: =SUMIF($C$9:$C$18,"Yearly",P$9:P$18) -> 2777.777778 | Q19: =+SUM(Q9:Q18) -> 5410.032477
B21: VARIABLE COSTS
B22: Fuel and gas costs | C22: Monthly | Q22: =IF(C22="Monthly",SUM(D22:O22),IF(C22="Yearly",P22,0)) -> 0
B23: Water fees | C23: Yearly | Q23: =IF(C23="Monthly",SUM(D23:O23),IF(C23="Yearly",P23,0)) -> 0
B24: Electricity fees | Q24: 0
B25: Transport fees | Q25: 0
B26: Salary costs (permanent staff) | Q26: 0
B27: Salary costs (temporary staff) | Q27: 0
B28: Seeds | Q28: 0
B29: Manure and fertilizer | Q29: 0
B30: Plant protection | Q30: 0
B31: Fodder | Q31: 0
B32: Veterinary Services | Q32: 0
B33: Traction and mechanisation hire | Q33: 0
B34: Machinery repairs and maintenance | Q34: 0
B35: Infrastructure repairs and maintenance | Q35: 0
B36: Irrigation repair and maintenance | Q36: 0
B37: - | Q37: 0
B38: - | Q38: 0
B39: VARIABLE COSTS per month/month | D39: =SUMIF($C$22:$C$38,"Monthly",D$22:D$38) -> 0 | E39: =SUMIF($C$22:$C$38,"Monthly",E$22:E$38) -> 0 | F39: 0 | G39: 0 | H39: 0 | I39: 0 | J39: 0 | K39: 0 | L39: 0 | M39: 0 | N39: 0 | O39: =SUMIF($C$22:$C$38,"Monthly",O$22:O$38) -> 0 | P39: =SUMIF($C$22:$C$38,"Yearly",P$22:P$38) -> 0 | Q39: =+SUM(Q22:Q38) -> 0

Sheet 7 Farm Income Statement
A1: INVEST – Farm Analysis Tool
B2: 8 FARM INCOME STATEMENT
F4: Farm code | G4: ='1 General Information'!C6 -> 0
C6: + | D6: Gross value of seasonal crop production | E6: =SUM('3 Income Crops & Livestock'!H10:H15) -> 0 | F6: ='1 General Information'!$D$13 -> € | G6: + | H6: =IF($E$16=0,0,(+E6/$E$16)*(1-$E$14)) -> 0
C7: + | D7: Gross value of seasonal crop by-product production | E7: =SUM('3 Income Crops & Livestock'!H17:H19) -> 0 | F7: ='1 General Information'!$D$13 -> € | G7: + | H7: =IF($E$16=0,0,(+E7/$E$16)*(1-$E$14)) -> 0
C8: + | D8: Gross value of perennial crop production | E8: =SUM('3 Income Crops & Livestock'!H27:H31) -> 0 | F8: ='1 General Information'!$D$13 -> € | G8: + | H8: 0
C9: + | D9: Gross value of perennial crop by-product production | E9: =SUM('3 Income Crops & Livestock'!H33:H35) -> 0 | F9: ='1 General Information'!$D$13 -> € | G9: + | H9: 0
C10: + | D10: Gross value of livestock production: | E10: =SUM('3 Income Crops & Livestock'!H44:H57) -> 0 | F10: ='1 General Information'!$D$13 -> € | G10: + | H10: 0
C11: + | D11: Gross value of livestock by-product production: | E11: =SUM('3 Income Crops & Livestock'!H59:H63) -> 60000 | F11: ='1 General Information'!$D$13 -> € | G11: + | H11: 1
C12: + | D12: Gross value of other income: | E12: ='4 Other Income'!Q15 -> 0 | F12: ='1 General Information'!$D$13 -> € | G12: + | H12: 0
C14: - | D14: Anticipated losses of total sales (reduction factor) | E14: 0.1 | F14: %
C16: = | D16: GROSS FARM INCOME | E16: =SUM(E6:E12)-(SUM(E6:E12)*E14) -> 54000 | F16: ='1 General Information'!$D$13 -> € | G16: = | H16: =SUM(H6:H12) -> 1
C19: - | D19: Total fixed costs | E19: ='6 Fixed and Variable Costs'!Q19 -> 5410.032477 | F19: ='1 General Information'!$D$13 -> € | G19: + | H19: =IF($E$21=0,0,+E19/$E$21) -> 1
C20: - | D20: Total variable costs | E20: ='6 Fixed and Variable Costs'!Q39 -> 0 | F20: ='1 General Information'!$D$13 -> € | G20: + | H20: =IF($E$21=0,0,+E20/$E$21) -> 0
C21: = | D21: TOTAL COST | E21: =SUM(E19:E20) -> 5410.032477 | F21: ='1 General Information'!$D$13 -> € | G21: = | H21: =SUM(H19:H20) -> 1
C57: = | D57: ="GROSS FARM PROFIT for period " & '1 General Information'!D12 -> GROSS FARM PROFIT for period 2018 | E57: ="to " & '1 General Information'!E12 -> to 2019 | G57: =E16-E21 -> 48589.96752 | H57: ='1 General Information'!$D$13 -> €
D58: Farm Profit Margin | G58: =(E16-E21)/E16 -> 0.8998142134
D60: ="average profit per "&'1 General Information'!$D$14&" of seasonal crops:" -> average profit per Acre of seasonal crops: | F60: =IFERROR('3 Income Crops & Livestock'!H20/MAX('3 Income Crops & Livestock'!C6:D6),"no crops") -> 0 | H60: ='1 General Information'!$D$13&" per"&" "&'1 General Information'!$D$14 -> € per Acre
D61: ="average profit per "&'1 General Information'!D14&" of perennial crops:" -> average profit per Acre of perennial crops: | F61: =IFERROR('3 Income Crops & Livestock'!H36/'3 Income Crops & Livestock'!D23,"no crops") -> no crops | H61: ='1 General Information'!$D$13&" per"&" "&'1 General Information'!$D$14 -> € per Acre
D62: average profit per head of livestock: | F62: =IFERROR('3 Income Crops & Livestock'!H64/('3 Income Crops & Livestock'!G40+'3 Income Crops & Livestock'!D40),"no livestock") -> 12000 | H62: ='1 General Information'!$D$13&" per head" -> € per head
D63: total crop area under cultivation: | F63: =MAX('3 Income Crops & Livestock'!C6:D6)+'3 Income Crops & Livestock'!D23 -> 1 | H63: ='1 General Information'!D14 -> Acre
D64: =IF(F63>'1 General Information'!H36,"Cultivated area does not match available crop area (1. General Information)","") -> 

Sheet List of dropdown (hidden)
A2: Area | B2: CF to ha
A3: ha | B3: 1
A4: Acre | B4: 2.47105
A5: Sq. km | B5: 0.01
A6: Sq. m | B6: 10000
A7: Sq. yard | B7: 11959.9
A8: Sq. ft | B8: 107639
A11: Season
A13: Season 1
A14: Season 2
A16: Total irrigated Area | B16: =SUM('1 General Information'!$E$31:$F$31) -> 1
C17: Crop | D17: Season | E17: Area
C18: Crop 1 | D18: ='3 Income Crops & Livestock'!$C10 -> Season 1 | E18: ='3 Income Crops & Livestock'!$D10 -> 0.5
C19: Crop 2 | D19: ='3 Income Crops & Livestock'!$C11 -> Season 1 | E19: ='3 Income Crops & Livestock'!$D11 -> 0.5
C20: Crop 3 | D20: ='3 Income Crops & Livestock'!$C12 -> Season 2 | E20: ='3 Income Crops & Livestock'!$D12 -> 0.5
C21: Crop 4 | D21: ='3 Income Crops & Livestock'!$C13 -> Season 2 | E21: ='3 Income Crops & Livestock'!$D13 -> 0.5
C22: Crop 5 | D22: ='3 Income Crops & Livestock'!$C14 -> 0 | E22: ='3 Income Crops & Livestock'!$D14 -> 0
C23: Crop 6 | D23: ='3 Income Crops & Livestock'!$C15 -> 0 | E23: ='3 Income Crops & Livestock'!$D15 -> 0
B24: =$E$24<=$B$16 -> TRUE | C24: season 1 | D24: Total area | E24: =SUMIF($D$18:D23, $C$24,$E$18:$E$23) -> 1
B25: =$E$25<=$B$16 -> TRUE | C25: season 2 | D25: Total area | E25: =SUMIF($D$18:D23, $C$25,$E$18:$E$23) -> 1
A28: Costs
A29: Monthly
A30: Yearly

Sheet Graph table (hidden)
A7: FIXED COSTS | B7: ='6 Fixed and Variable Costs'!B9 -> Financing fees | C7: ='6 Fixed and Variable Costs'!Q9 -> 2632.254699
B8: ='6 Fixed and Variable Costs'!B10 -> Depreciation costs | C8: ='6 Fixed and Variable Costs'!Q10 -> 2777.777778
B9: ='6 Fixed and Variable Costs'!B11 -> Membership fees | C9: ='6 Fixed and Variable Costs'!Q11 -> 0
B10: ='6 Fixed and Variable Costs'!B12 -> Insurance costs | C10: ='6 Fixed and Variable Costs'!Q12 -> 0
B11: ='6 Fixed and Variable Costs'!B13 -> Land tax | C11: ='6 Fixed and Variable Costs'!Q13 -> 0
B12: ='6 Fixed and Variable Costs'!B14 -> Social fund contribution | C12: ='6 Fixed and Variable Costs'!Q14 -> 0
B13: ='6 Fixed and Variable Costs'!B15 -> Leasing fees for equipment | C13: ='6 Fixed and Variable Costs'!Q15 -> 0
B14: ='6 Fixed and Variable Costs'!B16 -> Rental costs for land | C14: ='6 Fixed and Variable Costs'!Q16 -> 0
B15: ='6 Fixed and Variable Costs'!B17 -> - | C15: ='6 Fixed and Variable Costs'!Q17 -> 0
B16: ='6 Fixed and Variable Costs'!B18 -> - | C16: ='6 Fixed and Variable Costs'!Q18 -> 0
A17: ='6 Fixed and Variable Costs'!B21 -> VARIABLE COSTS | B17: ='6 Fixed and Variable Costs'!B22 -> Fuel and gas costs | C17: ='6 Fixed and Variable Costs'!Q22 -> 0
B18: ='6 Fixed and Variable Costs'!B23 -> Water fees | C18: ='6 Fixed and Variable Costs'!Q23 -> 0
B19: ='6 Fixed and Variable Costs'!B24 -> Electricity fees | C19: ='6 Fixed and Variable Costs'!Q24 -> 0
B20: ='6 Fixed and Variable Costs'!B25 -> Transport fees | C20: ='6 Fixed and Variable Costs'!Q25 -> 0
B21: ='6 Fixed and Variable Costs'!B26 -> Salary costs (permanent staff) | C21: ='6 Fixed and Variable Costs'!Q26 -> 0
B22: ='6 Fixed and Variable Costs'!B27 -> Salary costs (temporary staff) | C22: ='6 Fixed and Variable Costs'!Q27 -> 0
B23: ='6 Fixed and Variable Costs'!B28 -> Seeds | C23: ='6 Fixed and Variable Costs'!Q28 -> 0
B24: ='6 Fixed and Variable Costs'!B29 -> Manure and fertilizer | C24: ='6 Fixed and Variable Costs'!Q29 -> 0
B25: ='6 Fixed and Variable Costs'!B30 -> Plant protection | C25: ='6 Fixed and Variable Costs'!Q30 -> 0
B26: ='6 Fixed and Variable Costs'!B31 -> Fodder | C26: ='6 Fixed and Variable Costs'!Q31 -> 0
B27: ='6 Fixed and Variable Costs'!B32 -> Veterinary Services | C27: ='6 Fixed and Variable Costs'!Q32 -> 0
B28: ='6 Fixed and Variable Costs'!B33 -> Traction and mechanisation hire | C28: ='6 Fixed and Variable Costs'!Q33 -> 0
B29: ='6 Fixed and Variable Costs'!B34 -> Machinery repairs and maintenance | C29: ='6 Fixed and Variable Costs'!Q34 -> 0
B30: ='6 Fixed and Variable Costs'!B35 -> Infrastructure repairs and maintenance | C30: ='6 Fixed and Variable Costs'!Q35 -> 0
B31: ='6 Fixed and Variable Costs'!B36 -> Irrigation repair and maintenance | C31: ='6 Fixed and Variable Costs'!Q36 -> 0
B32: ='6 Fixed and Variable Costs'!B37 -> - | C32: ='6 Fixed and Variable Costs'!Q37 -> 0
B33: ='6 Fixed and Variable Costs'!B38 -> - | C33: ='6 Fixed and Variable Costs'!Q38 -> 0

Sheet Crop Price Calculation Sheet
A1: INVEST – Farm Analysis Tool
A2: Supplementary sheet for calculating average annual costs for selected crops and livestock based on seasonal monthly variations
B3: January | C3: February | D3: March | E3: April | F3: May | G3: June | H3: July | I3: August | J3: September | K3: October | L3: November | M3: December | N3: AVERAGE
B4: Unit price | C4: Unit price | D4: Unit price | E4: Unit price | F4: Unit price | G4: Unit price | H4: Unit price | I4: Unit price | J4: Unit price | K4: Unit price | L4: Unit price | M4: Unit price | N4: Unit price
A5: Seasonal Crops
A6: ='3 Income Crops & Livestock'!B10 -> Tomato | N6: =AVERAGE(B6:M6) -> 
A7: ='3 Income Crops & Livestock'!B11 -> Maize | N7: =AVERAGE(B7:M7) -> 
A8: ='3 Income Crops & Livestock'!B12 -> Tomato
A9: ='3 Income Crops & Livestock'!B13 -> Beans
A10: ='3 Income Crops & Livestock'!B15 -> 0
A11: ='3 Income Crops & Livestock'!B16 -> By-products:
A12: ='3 Income Crops & Livestock'!B17 -> 0
A13: ='3 Income Crops & Livestock'!B18 -> 0
A14: ='3 Income Crops & Livestock'!B19 -> 0
A15: Perennial crops
A16: ='3 Income Crops & Livestock'!B27 -> 0
A17: ='3 Income Crops & Livestock'!B28 -> 0
A18: ='3 Income Crops & Livestock'!B29 -> 0
A19: ='3 Income Crops & Livestock'!B30 -> 0
A20: ='3 Income Crops & Livestock'!B31 -> 0
A21: ='3 Income Crops & Livestock'!B32 -> By-products:
A22: ='3 Income Crops & Livestock'!B33 -> 0
A23: ='3 Income Crops & Livestock'!B34 -> 0
A24: ='3 Income Crops & Livestock'!B35 -> 0
A25: Livestock
A26: ='3 Income Crops & Livestock'!B44 -> Dairy cows
A27: ='3 Income Crops & Livestock'!B45 -> Heifers
A28: ='3 Income Crops & Livestock'!B46 -> Adult steers
A29: ='3 Income Crops & Livestock'!B47 -> Juvenile steers
A30: ='3 Income Crops & Livestock'!B48 -> Calfs
A31: ='3 Income Crops & Livestock'!B49 -> Sheep does
A32: ='3 Income Crops & Livestock'!B50 -> Sheep bucks
A33: ='3 Income Crops & Livestock'!B51 -> Sheep kids
A34: ='3 Income Crops & Livestock'!B52 -> Goat does
A35: ='3 Income Crops & Livestock'!B53 -> Goat bucks
A36: ='3 Income Crops & Livestock'!B54 -> Goat kids
A37: ='3 Income Crops & Livestock'!B55 -> Chickens
A38: ='3 Income Crops & Livestock'!B56 -> 0
A39: ='3 Income Crops & Livestock'!B57 -> 0
A40: ='3 Income Crops & Livestock'!B58 -> By-products:
A41: ='3 Income Crops & Livestock'!B59 -> Milk
A42: ='3 Income Crops & Livestock'!B60 -> Eggs
A43: ='3 Income Crops & Livestock'!B61 -> Skins
A44: ='3 Income Crops & Livestock'!B62 -> Manure
A45: ='3 Income Crops & Livestock'!B63 -> 0

Sheet Quick Check
A1: INVEST – Farm Analysis Tool
B2: QUICK CHECK
B5: Annual Expenditure
B6: Expenditure Type | C6: Examples | D6: Annual Amount
B7: Seasonal crop expenses | C7: Seedlings, pesticides, fertilisers, protection, etc | F7: Calculator
B8: Perennial crop expenses | C8: Seedlings, pesticides, fertilisers, protection, etc | G8: add up: | H8: multiply: | I8: divide:
B9: Livestock expenses | C9: New livestock, fodder, slaughtering, veterinary services, etc | F9: a.
B10: Operation and maintenance - Infrastructure | C10: Building renovations, painting, plastering, fencing, electricity, water, etc | F10: b.
B11: Operation and maintenance - Fixed equipment | C11: Water pumps, irrigation equipment, packaging equipment, milling, fuel, spare parts, repairs, etc | F11: c.
B12: Operation and maintenance - Movable equipment | C12: Tractor, trucks, plough, trailer, fuel, spare parts, repairs, etc | F12: d.
B13: Labour | C13: Salaries, benefits, own salary (?) etc | F13: e.
B14: Sales and distribution | C14: Packaging, fees, advertising, etc | F14: Total | G14: =SUM(G9:G13) -> 0 | H14: =H9*H10 -> 0 | I14: =I9/I10 -> 
B15: Management and administration | C15: Rent, office consumables, insurance, memberships, loan repayments, etc
D17: =SUM(D7:D16) -> 0
B19: Annual Income
B20: Income Type | C20: Examples | D20: Annual Amount
B21: Seasonal crop sales | C21: Tomatos, grain, rice, value added product, etc
B22: By-products from seasonal crops | C22: Compost, fodder, value added product, etc
B23: Perennial crop sales | C23: Citrus, apples, dates, berries, value added product, etc
B24: By-products from perennial crops | C24: Wood fuel, mulch, value added product, etc
B25: Livestock sales | C25: Cattle, sheep, chickens, etc
B26: By-products from livestock | C26: Manure, eggs, milk, wool, value added product, etc
B27: Lease income | C27: Labour, vehicles, land, etc
B28: Services income | C28: Subcontract work, maintenance service, packaging service, transport, etc
D30: =SUM(D21:D29) -> 0
C32: Profit or loss | D32: =D30-D17 -> 0
B33: =IF(D32>0,"You are profitable! Proceed with detailed analysis to be sure.",(IF(D32<0,"You are making a loss. Review your values or consider additional income opportunities or means to reduce expenses.",""))) -> 
